bitfinex-derivatives/quotes_BTCF0:USTF0_20250527
["timestamp","ask_amount","ask_price","bid_price","bid_amount"]
[1748305239453,1.53212845,109480.0,109470.0,0.0398907]
[1748305239844,1.53212845,109480.0,109470.0,0.0397707]
[1748305240051,1.53212845,109480.0,109450.0,0.0641]
[1748305240052,0.1826501,109460.0,109450.0,0.0641]
[1748305240251,1.46120993,109460.0,109450.0,0.2041]
[1748305240559,1.52410993,109460.0,109450.0,0.2041]
[1748305241255,1.52410993,109460.0,109450.0,0.141]
[1748305241459,1.4172701,109460.0,109450.0,0.1738]
[1748305241758,1.52410993,109460.0,109450.0,0.20582]
[1748305242652,1.52410993,109460.0,109450.0,0.17392]
[1748305243549,1.52410993,109460.0,109450.0,0.141]
[1748305243864,1.88490993,109460.0,109450.0,0.141]
[1748305244362,1.88490993,109460.0,109450.0,0.14112]
[1748305244961,1.88490993,109460.0,109450.0,0.141]
[1748305245258,1.88490993,109460.0,109430.0,0.04127249]
[1748305245259,0.1826835,109440.0,109430.0,0.00807249]
[1748305245557,1.56816316,109440.0,109430.0,0.02103009]
[1748305245753,0.1827002,109430.0,109420.0,0.010733]
[1748305245946,0.74524003,109430.0,109420.0,0.110733]
[1748305246256,1.55628003,109430.0,109420.0,0.12395653]
[1748305246650,1.55628003,109430.0,109420.0,0.12407653]
[1748305246845,1.55628003,109430.0,109420.0,0.18517653]
[1748305247252,1.55632003,109430.0,109420.0,0.18517653]
[1748305247563,1.54493609,109430.0,109420.0,0.17644353]
[1748305247752,1.54493609,109430.0,109420.0,0.11534353]
[1748305248063,1.5539717,109430.0,109420.0,0.11534353]
[1748305248564,1.5539717,109430.0,109420.0,0.11522353]
[1748305248866,1.5539717,109430.0,109420.0,0.11734353]
[1748305249065,1.5539717,109430.0,109420.0,0.11722353]
[1748305249367,1.5539717,109430.0,109420.0,0.11734353]
[1748305249660,1.56770922,109430.0,109420.0,0.11734353]
[1748305249861,1.46086939,109430.0,109420.0,0.11734353]
[1748305250063,1.56770922,109430.0,109420.0,0.11734353]
[1748305250761,1.46526121,109430.0,109420.0,0.11734353]
[1748305250962,1.57210104,109430.0,109420.0,0.11734353]
[1748305251764,1.46526121,109430.0,109420.0,0.11734353]
[1748305251967,1.57210104,109430.0,109420.0,0.11734353]
[1748305252363,1.57210104,109430.0,109420.0,0.11722353]
[1748305252670,1.57210104,109430.0,109420.0,0.11734353]
[1748305253665,1.57310104,109430.0,109420.0,0.11534353]
[1748305255056,1.57310104,109430.0,109420.0,0.11334353]
[1748305255253,1.57410104,109430.0,109420.0,0.11334353]
[1748305257869,0.76302104,109430.0,109420.0,0.11334353]
[1748305258071,1.57434104,109430.0,109420.0,0.11334353]
[1748305261065,0.1827337,109410.0,109400.0,0.1]
[1748305261267,1.92933336,109410.0,109400.0,0.23]
[1748305261463,2.02223336,109410.0,109400.0,0.23]
[1748305261658,2.02223336,109410.0,109400.0,0.23012]
[1748305262177,1.8085537,109410.0,109400.0,0.23012]
[1748305262468,1.4478337,109410.0,109400.0,0.23412]
[1748305262680,1.55467353,109410.0,109400.0,0.29622]
[1748305264569,1.4478337,109410.0,109400.0,0.29622]
[1748305264767,1.55467353,109410.0,109400.0,0.29622]
[1748305265172,1.4478337,109410.0,109400.0,0.29622]
[1748305265371,1.55467353,109410.0,109400.0,0.29622]
[1748305265575,0.74327353,109410.0,109400.0,0.29622]
[1748305265767,1.55906535,109410.0,109400.0,0.29622]
[1748305266569,1.45222552,109410.0,109400.0,0.29622]
[1748305266976,1.55906535,109410.0,109400.0,0.38622]
[1748305267276,1.55906535,109410.0,109400.0,0.32622]
[1748305267475,1.55906535,109410.0,109400.0,0.29622]
[1748305269568,0.85450518,109410.0,109400.0,0.23412]
[1748305269769,1.67106518,109410.0,109400.0,0.23412]
[1748305269971,1.67106518,109410.0,109400.0,0.234]
[1748305270269,1.67106518,109410.0,109400.0,0.23412]
[1748305270673,1.56422535,109410.0,109400.0,0.23412]
[1748305271978,1.56522535,109410.0,109400.0,0.23212]
[1748305272378,1.56622535,109410.0,109400.0,0.23012]
[1748305273278,1.56622535,109410.0,109400.0,0.24362976]
[1748305275282,1.56722535,109410.0,109400.0,0.24362976]
[1748305275684,1.56822535,109410.0,109400.0,0.24362976]
[1748305275873,1.7319769,109410.0,109400.0,0.24362976]
[1748305276076,2.0927769,109410.0,109400.0,0.24362976]
[1748305276482,2.0927769,109410.0,109400.0,0.24350976]
[1748305276782,1.98593707,109410.0,109400.0,0.24362976]
[1748305277980,2.0927769,109410.0,109400.0,0.24362976]
[1748305279182,2.0927769,109410.0,109400.0,0.21097736]
[1748305279385,0.1827504,109400.0,109390.0,0.00765212]
[1748305279582,0.71579023,109400.0,109390.0,0.00765212]
[1748305279884,1.75259023,109400.0,109390.0,0.00765212]
[1748305280277,1.75259023,109400.0,109390.0,0.01765212]
[1748305280476,1.89486953,109400.0,109390.0,0.01227997]
[1748305281184,1.89586953,109400.0,109390.0,0.01227997]
[1748305281882,1.89686953,109400.0,109390.0,0.01227997]
[1748305283583,2.71350953,109400.0,109390.0,0.01227997]
[1748305284089,2.71350953,109400.0,109390.0,0.01239997]
[1748305284585,2.6066697,109400.0,109390.0,0.01239997]
[1748305284786,2.71350953,109400.0,109390.0,0.01239997]
[1748305285185,2.65659781,109400.0,109390.0,0.01239997]
[1748305288989,2.65659781,109400.0,109390.0,0.12239997]
[1748305288990,2.71366246,109400.0,109390.0,0.12239997]
[1748305289383,2.71366246,109400.0,109390.0,0.21739997]
[1748305290483,2.62829488,109400.0,109390.0,0.21739997]
[1748305290683,2.62829488,109400.0,109390.0,0.40016717]
[1748305290684,1.85601488,109400.0,109390.0,0.40016717]
[1748305290894,2.12745505,109400.0,109390.0,0.3242398]
[1748305291082,1.31073505,109400.0,109390.0,0.3242398]
[1748305291285,2.12745505,109400.0,109390.0,0.3242398]
[1748305291593,2.0382705,109400.0,109390.0,0.52929555]
[1748305292187,2.0382705,109400.0,109390.0,0.51643213]
[1748305292995,2.0382705,109400.0,109390.0,0.87723213]
[1748305293200,0.002,109400.0,109390.0,1.21864413]
[1748305293401,0.41348,109400.0,109390.0,1.57864413]
[1748305293598,0.5962305,109400.0,109390.0,1.57728642]
[1748305294805,0.1847505,109400.0,109390.0,1.57728642]
[1748305294994,0.002,109400.0,109390.0,1.57728642]
[1748305295187,0.5962305,109400.0,109390.0,1.579952]
[1748305296105,0.1847505,109400.0,109390.0,1.579952]
[1748305296312,0.5962305,109400.0,109390.0,1.579952]
[1748305296606,0.5962305,109400.0,109390.0,1.58252883]
[1748305297308,0.41348,109400.0,109390.0,1.58252883]
[1748305298801,0.41348,109400.0,109390.0,1.59332673]
[1748305299207,0.5962305,109400.0,109390.0,1.1464869]
[1748305299402,0.5962305,109400.0,109390.0,1.23332673]
[1748305299706,0.41348,109400.0,109390.0,1.23332673]
[1748305299906,0.41348,109400.0,109390.0,1.25332673]
[1748305300710,0.002,109400.0,109390.0,1.58332673]
[1748305300911,0.41344,109400.0,109390.0,1.58332673]
[1748305303007,0.41344,109400.0,109390.0,1.5700169]
[1748305303708,0.41344,109400.0,109390.0,1.9308169]
[1748305304601,0.41344,109400.0,109390.0,1.6708169]
[1748305306099,0.5961905,109400.0,109390.0,1.6708169]
[1748305306305,0.44524,109400.0,109390.0,1.6708169]
[1748305307203,0.44524,109400.0,109390.0,1.4208169]
[1748305311215,0.44524,109400.0,109390.0,1.410019]
[1748305312817,0.44516,109400.0,109390.0,1.410019]
[1748305313715,0.47806,109400.0,109390.0,1.410019]
[1748305315016,0.47806,109400.0,109390.0,1.4208169]
[1748305315917,0.6608105,109400.0,109390.0,1.4208169]
[1748305316122,0.47806,109400.0,109390.0,1.4208169]
[1748305318022,0.6608105,109400.0,109390.0,1.1444049]
[1748305318419,0.6608105,109400.0,109390.0,1.1442849]
[1748305318623,0.76765033,109400.0,109390.0,0.67676507]
[1748305318823,0.76765033,109400.0,109390.0,0.67664507]
[1748305319018,0.76765033,109400.0,109390.0,0.67676507]
[1748305320823,0.76765033,109400.0,109390.0,0.67664507]
[1748305321224,0.76765033,109400.0,109390.0,0.51189431]
[1748305321423,0.76765033,109400.0,109390.0,0.72177431]
[1748305321621,0.76765033,109400.0,109390.0,0.72189431]
[1748305322824,1.16889033,109400.0,109390.0,0.72189431]
[1748305323924,1.16889033,109400.0,109390.0,0.71109641]
[1748305324126,1.16889033,109400.0,109390.0,0.57092]
[1748305324313,1.16889033,109400.0,109390.0,0.21]
[1748305324314,1.52969033,109400.0,109390.0,0.21]
[1748305324624,1.52969033,109400.0,109390.0,0.21012]
[1748305324827,1.53408215,109400.0,109390.0,0.22301215]
[1748305325514,1.53408215,109400.0,109390.0,0.23298832]
[1748305325710,1.52969033,109400.0,109390.0,0.23298832]
[1748305326723,1.52969033,109400.0,109390.0,0.22758019]
[1748305329721,1.52969033,109400.0,109390.0,0.22352584]
[1748305332629,1.52969033,109400.0,109390.0,0.15352584]
[1748305333727,1.52969033,109400.0,109390.0,0.12078594]
[1748305333923,1.52969033,109400.0,109390.0,0.01340584]
[1748305334129,1.52969033,109400.0,109390.0,0.01352584]
[1748305334330,1.67204256,109400.0,109390.0,0.01352584]
[1748305334830,1.67212256,109400.0,109390.0,0.14352584]
[1748305335130,1.67312256,109400.0,109390.0,0.01352584]
[1748305335729,1.58775498,109400.0,109390.0,0.01352584]
[1748305336130,1.58875498,109400.0,109390.0,0.01352584]
[1748305339131,1.58875498,109400.0,109390.0,0.15352584]
[1748305342535,0.66923515,109400.0,109390.0,0.15352584]
[1748305342829,0.66923515,109400.0,109390.0,0.46629304]
[1748305342830,1.58611498,109400.0,109390.0,0.46629304]
[1748305343030,1.58611498,109400.0,109390.0,0.32001766]
[1748305343535,1.06779515,109400.0,109390.0,0.60962469]
[1748305343735,1.47927515,109400.0,109390.0,0.67252469]
[1748305343935,1.4222905,109400.0,109390.0,0.67252469]
[1748305344232,1.4222905,109400.0,109390.0,0.56568486]
[1748305344426,1.0614905,109400.0,109390.0,1.03332469]
[1748305344837,1.0614905,109400.0,109390.0,1.02043254]
[1748305345336,1.0614905,109400.0,109390.0,1.02448689]
[1748305345836,1.0614905,109400.0,109390.0,0.91764706]
[1748305346536,1.0614905,109400.0,109390.0,0.92305519]
[1748305346730,1.4222905,109400.0,109390.0,0.37948799]
[1748305346933,1.52913033,109400.0,109390.0,0.15448799]
[1748305347137,1.52913033,109400.0,109390.0,0.15009617]
[1748305347339,1.52913033,109400.0,109390.0,0.16287509]
[1748305347637,1.52913033,109400.0,109390.0,0.19559509]
[1748305347938,1.52913033,109400.0,109390.0,0.18613261]
[1748305348135,1.52913033,109400.0,109390.0,0.19052443]
[1748305349031,1.52913033,109400.0,109390.0,0.18613261]
[1748305350334,1.52913033,109400.0,109390.0,0.19018696]
[1748305351539,1.52913033,109400.0,109390.0,0.18613261]
[1748305351741,1.52913033,109400.0,109390.0,0.15353261]
[1748305354842,1.58611498,109400.0,109390.0,0.15758696]
[1748305360337,1.58611498,109400.0,109390.0,0.15746696]
[1748305360539,1.58611498,109400.0,109390.0,0.15758696]
[1748305361644,1.58611498,109400.0,109390.0,0.15353261]
[1748305361937,1.47927515,109400.0,109390.0,0.15353261]
[1748305362144,1.58611498,109400.0,109390.0,0.15353261]
[1748305362344,1.58611498,109400.0,109390.0,0.18812443]
[1748305363447,0.1827672,109390.0,109380.0,0.03996112]
[1748305363747,0.74480703,109390.0,109380.0,0.16996112]
[1748305364651,0.74680703,109390.0,109380.0,0.16996112]
[1748305364955,0.74680703,109390.0,109380.0,0.04996112]
[1748305365247,0.74680703,109390.0,109380.0,0.15996112]
[1748305366744,0.74680703,109390.0,109380.0,0.16506112]
[1748305367048,0.74680703,109390.0,109380.0,0.04996112]
[1748305368345,0.6399672,109390.0,109380.0,0.04996112]
[1748305368548,0.74680703,109390.0,109380.0,0.04996112]
[1748305369548,0.75601927,109390.0,109380.0,0.04996112]
[1748305370655,0.75601927,109390.0,109380.0,0.01946248]
[1748305370955,1.56521927,109390.0,109380.0,0.00012008]
[1748305371538,0.1827839,109380.0,109370.0,0.00811568]
[1748305371742,0.82236356,109380.0,109370.0,0.13811568]
[1748305372541,0.82236356,109380.0,109370.0,0.13823568]
[1748305372742,0.82236356,109380.0,109370.0,0.13923568]
[1748305373151,0.96471579,109380.0,109370.0,0.13212]
[1748305373747,2.00163579,109380.0,109370.0,0.050336]
[1748305373947,2.00163579,109380.0,109370.0,0.050216]
[1748305374151,2.00163579,109380.0,109370.0,0.050336]
[1748305374945,1.94465114,109380.0,109370.0,0.050336]
[1748305375252,2.03607914,109380.0,109370.0,0.050336]
[1748305375450,2.03607914,109380.0,109370.0,0.050216]
[1748305375650,1.82239948,109380.0,109370.0,0.050336]
[1748305375855,2.03607914,109380.0,109370.0,0.050336]
[1748305376853,2.03607914,109380.0,109370.0,0.06370089]
[1748305377051,1.82239948,109380.0,109370.0,0.06370089]
[1748305377258,2.03607914,109380.0,109370.0,0.06370089]
[1748305377559,1.94465114,109380.0,109370.0,0.06370089]
[1748305377751,2.30545114,109380.0,109370.0,0.06370089]
[1748305378249,2.36240936,109380.0,109370.0,0.06370089]
[1748305380754,2.36240936,109380.0,109370.0,0.06270089]
[1748305381059,1.64280936,109380.0,109370.0,0.06270089]
[1748305381255,2.36440936,109380.0,109370.0,0.06270089]
[1748305381556,2.36640936,109380.0,109370.0,0.06170089]
[1748305381856,1.64480936,109380.0,109370.0,0.06170089]
[1748305382057,2.36640936,109380.0,109370.0,0.06170089]
[1748305384656,3.06892953,109380.0,109370.0,0.06170089]
[1748305385561,2.9620897,109380.0,109370.0,0.06170089]
[1748305385955,2.98356195,109380.0,109370.0,0.06170089]
[1748305386357,2.46516212,109380.0,109370.0,0.06170089]
[1748305386572,2.06736212,109380.0,109370.0,0.09260089]
[1748305386761,2.98356195,109380.0,109370.0,0.09260089]
[1748305386967,2.57200195,109380.0,109370.0,0.09260089]
[1748305387168,2.98356195,109380.0,109370.0,0.09260089]
[1748305388574,2.87672212,109380.0,109370.0,0.09260089]
[1748305388778,2.98356195,109380.0,109370.0,0.09260089]
[1748305389777,2.98356195,109380.0,109370.0,0.09699271]
[1748305390977,2.98356195,109380.0,109370.0,0.09260089]
[1748305393171,1.85500195,109380.0,109370.0,0.20260089]
[1748305393375,2.62736195,109380.0,109370.0,0.23390089]
[1748305393676,2.62736195,109380.0,109370.0,0.26470089]
[1748305395482,2.57040373,109380.0,109370.0,0.15470089]
[1748305395683,2.57040373,109380.0,109370.0,0.25470089]
[1748305396389,0.1867839,109380.0,109370.0,0.57434132]
[1748305396681,0.004,109380.0,109370.0,0.57434132]
[1748305396878,0.41556,109380.0,109370.0,1.26320443]
[1748305397076,0.5983439,109380.0,109370.0,1.26320443]
[1748305397277,0.5983439,109380.0,109370.0,1.01320443]
[1748305397581,0.5983439,109380.0,109370.0,0.92177643]
[1748305398081,0.003,109380.0,109370.0,1.38084216]
[1748305398287,0.18425939,109400.0,109390.0,0.1827672]
[1748305398476,0.59581939,109400.0,109390.0,0.53960703]
[1748305398675,0.59581939,109400.0,109390.0,0.63370703]
[1748305399880,0.59781939,109400.0,109390.0,0.64180521]
[1748305400186,0.18625939,109400.0,109390.0,0.73321721]
[1748305400387,0.00350889,109400.0,109390.0,1.71401721]
[1748305400789,0.41502889,109400.0,109390.0,1.71401721]
[1748305401087,0.41702889,109400.0,109390.0,1.71401721]
[1748305401286,0.59977939,109400.0,109390.0,1.34401721]
[1748305401582,0.59977939,109400.0,109390.0,1.34671693]
[1748305401583,0.18625939,109400.0,109390.0,1.34671693]
[1748305401783,0.59777939,109400.0,109390.0,0.82253773]
[1748305401992,0.59777939,109400.0,109390.0,1.00542493]
[1748305402391,0.00213687,109400.0,109390.0,1.66671693]
[1748305402687,0.18488737,109400.0,109390.0,1.66142461]
[1748305403080,0.59436737,109400.0,109390.0,1.66142461]
[1748305403389,0.00013687,109400.0,109390.0,1.66142461]
[1748305403589,0.41161687,109400.0,109390.0,1.66142461]
[1748305404088,0.41161687,109400.0,109390.0,1.4141116]
[1748305404285,0.41161687,109400.0,109390.0,1.6641116]
[1748305404585,0.59436737,109400.0,109390.0,1.6641116]
[1748305404787,0.59436737,109400.0,109390.0,1.0941116]
[1748305404990,0.59436737,109400.0,109390.0,1.0026996]
[1748305405288,0.59436737,109400.0,109390.0,1.0025796]
[1748305405689,0.59436737,109400.0,109390.0,1.0026996]
[1748305407382,0.59436737,109400.0,109390.0,1.00000222]
[1748305408492,0.65886737,109400.0,109390.0,1.00000222]
[1748305410795,0.65886737,109400.0,109390.0,0.99988222]
[1748305411097,0.65886737,109400.0,109390.0,1.00000222]
[1748305411290,0.65886737,109400.0,109390.0,0.99462703]
[1748305412594,0.65886737,109400.0,109390.0,0.93122703]
[1748305412794,1.1679472,109400.0,109390.0,0.25]
[1748305413099,1.5287472,109400.0,109390.0,0.12012]
[1748305413295,1.5287472,109400.0,109390.0,0.12]
[1748305413596,1.5287472,109400.0,109390.0,0.12012]
[1748305413793,1.5287472,109400.0,109390.0,0.3028872]
[1748305415093,1.5287472,109400.0,109390.0,0.12012]
[1748305415397,1.5287472,109400.0,109390.0,0.3028872]
[1748305415592,1.5287472,109400.0,109390.0,0.3128872]
[1748305417403,1.5287472,109400.0,109390.0,0.13012]
[1748305417603,1.1172672,109400.0,109390.0,0.3128872]
[1748305417787,1.06102737,109400.0,109390.0,0.78052703]
[1748305417993,1.06102737,109400.0,109390.0,0.81252703]
[1748305419004,0.64962737,109400.0,109390.0,0.81252703]
[1748305419194,1.06106737,109400.0,109390.0,0.87312703]
[1748305420406,0.18288737,109400.0,109390.0,0.87312703]
[1748305420701,0.41156,109420.0,109410.0,0.1827338]
[1748305420998,0.03312,109420.0,109410.0,1.09860946]
[1748305421208,0.03312,109420.0,109410.0,1.55560946]
[1748305421399,0.41156,109420.0,109410.0,1.55560946]
[1748305421597,0.00012,109420.0,109410.0,1.86560946]
[1748305421904,0.41256,109420.0,109410.0,2.12368203]
[1748305422097,0.00112,109420.0,109410.0,2.12368203]
[1748305422297,0.00112,109420.0,109410.0,1.87368203]
[1748305422500,0.00137137,109440.0,109410.0,2.04778806]
[1748305422797,0.41281137,109440.0,109430.0,1.11798006]
[1748305422997,0.41293137,109440.0,109430.0,1.55556005]
[1748305423207,0.00149137,109440.0,109430.0,1.43872022]
[1748305423403,0.41281137,109440.0,109430.0,1.74872022]
[1748305423598,0.41293137,109440.0,109430.0,1.48872022]
[1748305423901,0.59561507,109440.0,109430.0,1.3722328]
[1748305424099,0.59561507,109440.0,109430.0,1.3222328]
[1748305424100,0.65891507,109440.0,109430.0,1.3222328]
[1748305424507,0.65891507,109440.0,109430.0,1.3221128]
[1748305424711,0.00012,109440.0,109430.0,1.3221128]
[1748305424900,0.00012,109440.0,109430.0,1.84133262]
[1748305425102,1e-07,109440.0,109430.0,2.12303262]
[1748305425306,7e-08,109450.0,109440.0,0.1826837]
[1748305425603,7e-08,109450.0,109440.0,2.13155536]
[1748305425802,0.0633,109470.0,109460.0,0.1826503]
[1748305426109,0.47466,109470.0,109460.0,1.27104696]
[1748305426300,0.6572937,109470.0,109460.0,1.33374696]
[1748305426691,0.6574137,109470.0,109460.0,1.33374696]
[1748305426897,0.6574137,109470.0,109460.0,1.34718944]
[1748305427996,0.00012,109470.0,109460.0,1.74742944]
[1748305428202,0.00012,109470.0,109460.0,2.07935687]
[1748305428407,0.03182,109470.0,109460.0,1.73935687]
[1748305428604,0.03182,109470.0,109460.0,1.74035687]
[1748305428804,0.06222,109470.0,109460.0,1.74035687]
[1748305429005,0.0621,109470.0,109460.0,1.74035687]
[1748305429206,0.06222,109470.0,109460.0,2.07035687]
[1748305429606,0.06222,109470.0,109460.0,2.06035687]
[1748305431614,0.2448537,109470.0,109460.0,1.74035687]
[1748305431913,0.2448537,109470.0,109460.0,1.74899964]
[1748305432904,0.06222,109470.0,109460.0,1.74899964]
[1748305434911,0.2448537,109470.0,109460.0,1.19956298]
[1748305435107,0.6056537,109470.0,109460.0,0.12501268]
[1748305435306,0.6056537,109470.0,109460.0,0.121]
[1748305435707,0.6056537,109470.0,109460.0,0.3036504]
[1748305436012,0.6056537,109470.0,109460.0,0.3036503]
[1748305436209,0.6056537,109470.0,109460.0,0.3037703]
[1748305436610,0.6076537,109470.0,109460.0,0.3037703]
[1748305437719,0.6076537,109470.0,109460.0,0.3027703]
[1748305437912,0.6086537,109470.0,109460.0,0.3027703]
[1748305440222,0.6086537,109470.0,109460.0,0.12012]
[1748305440615,0.72545036,109470.0,109460.0,0.12012]
[1748305440910,1.4198137,109470.0,109460.0,0.3027704]
[1748305441112,1.4198137,109470.0,109460.0,0.12287998]
[1748305441313,1.4207737,109470.0,109460.0,0.12287998]
[1748305442610,1.53757036,109470.0,109460.0,0.12287998]
[1748305443209,0.6094937,109470.0,109460.0,0.12287998]
[1748305443416,1.4207737,109470.0,109460.0,0.30541028]
[1748305443608,1.4207737,109470.0,109460.0,0.12287998]
[1748305444520,1.4206537,109470.0,109460.0,0.12287998]
[1748305445122,1.4207737,109470.0,109460.0,0.12287998]
[1748305445822,1.4207737,109470.0,109460.0,0.12]
[1748305445823,1.4198137,109470.0,109460.0,0.12]
[1748305446120,1.52751189,109470.0,109460.0,0.12275998]
[1748305446323,0.42674,109470.0,109460.0,0.45226847]
[1748305446622,0.42674,109470.0,109460.0,0.48386847]
[1748305446809,0.06606,109470.0,109460.0,0.87706847]
[1748305447013,0.47722,109470.0,109460.0,0.87706847]
[1748305447418,0.6598537,109470.0,109460.0,0.87706847]
[1748305448014,0.6598537,109470.0,109460.0,0.88108115]
[1748305449321,0.6598537,109470.0,109460.0,0.88645106]
[1748305449717,0.00396,109470.0,109460.0,1.58342925]
[1748305450014,0.00384,109470.0,109460.0,1.58342925]
[1748305450518,0.00396,109470.0,109460.0,1.58211923]
[1748305450712,0.00312,109470.0,109460.0,1.58211923]
[1748305451021,0.002,109470.0,109460.0,1.58035925]
[1748305451416,0.00284,109470.0,109460.0,1.58035925]
[1748305451817,0.53961849,109500.0,109470.0,0.0456576]
[1748305452019,0.0612,109490.0,109480.0,1.1428732]
[1748305452218,0.0612,109490.0,109480.0,2.2050092]
[1748305452523,0.06132,109490.0,109480.0,1.7736732]
[1748305452725,0.06132,109490.0,109480.0,1.7636732]
[1748305453020,0.06132,109490.0,109480.0,2.1436732]
[1748305453220,0.06132,109490.0,109480.0,2.25053139]
[1748305454024,0.06132,109490.0,109480.0,2.26232929]
[1748305454423,0.06132,109490.0,109480.0,2.30845182]
[1748305455824,0.06132,109490.0,109480.0,2.31754556]
[1748305458327,0.06132,109490.0,109480.0,1.93674766]
[1748305458521,0.06132,109490.0,109480.0,1.38543527]
[1748305458721,0.6047203,109490.0,109480.0,0.30712253]
[1748305459126,0.71157849,109490.0,109480.0,0.30712253]
[1748305459323,0.71157849,109490.0,109480.0,0.443617]
[1748305459523,0.6047203,109490.0,109480.0,0.443617]
[1748305459925,0.71157849,109490.0,109480.0,0.261]
[1748305460121,0.71157849,109490.0,109480.0,0.26502912]
[1748305460325,0.71157849,109490.0,109480.0,0.44764612]
[1748305461329,0.71157849,109490.0,109480.0,0.443617]
[1748305461730,0.6047203,109490.0,109480.0,0.443617]
[1748305462619,1.0034403,109490.0,109480.0,0.323617]
[1748305462822,1.4145203,109490.0,109480.0,0.354817]
[1748305463126,1.4145203,109490.0,109480.0,0.323617]
[1748305463528,1.4145203,109490.0,109480.0,0.453617]
[1748305463724,0.87112,109490.0,109480.0,0.484217]
[1748305463923,0.0612,109490.0,109480.0,0.9618444]
[1748305464128,0.4724,109490.0,109480.0,0.9950444]
[1748305464429,0.47228,109490.0,109480.0,1.00444799]
[1748305464631,0.06132,109490.0,109480.0,1.00444799]
[1748305464832,0.06132,109490.0,109480.0,1.12127539]
[1748305465033,0.442,109490.0,109480.0,1.48127539]
[1748305465329,0.44188,109490.0,109480.0,1.36444799]
[1748305465530,0.442,109490.0,109480.0,1.36444799]
[1748305466426,0.442,109490.0,109480.0,1.36310957]
[1748305467232,0.6246003,109490.0,109480.0,1.36310957]
[1748305467531,0.6246003,109490.0,109480.0,1.01310957]
[1748305468133,0.442,109490.0,109480.0,1.01310957]
[1748305468333,0.6246003,109490.0,109480.0,1.01310957]
[1748305469236,0.442,109490.0,109480.0,1.01310957]
[1748305470237,0.4751,109490.0,109480.0,1.01310957]
[1748305470734,0.06402,109490.0,109480.0,1.01310957]
[1748305470936,0.47506,109490.0,109480.0,1.01310957]
[1748305471438,0.47506,109490.0,109480.0,1.0158423]
[1748305472238,0.47506,109490.0,109480.0,0.8990149]
[1748305472539,0.47506,109490.0,109480.0,1.0158423]
[1748305472930,0.47506,109490.0,109480.0,1.0050444]
[1748305473838,0.47506,109490.0,109480.0,1.0158423]
[1748305474635,0.47506,109490.0,109480.0,0.8990149]
[1748305474834,0.47506,109490.0,109480.0,1.0158423]
[1748305478441,0.6576603,109490.0,109480.0,0.8352149]
[1748305478647,0.6576603,109490.0,109480.0,0.8252149]
[1748305479038,0.6576603,109490.0,109480.0,0.82249919]
[1748305479442,0.6576603,109490.0,109480.0,0.27908219]
[1748305479640,1.0184603,109490.0,109480.0,0.46169919]
[1748305480339,1.0184603,109490.0,109480.0,0.46708586]
[1748305480641,1.0184603,109490.0,109480.0,0.28446886]
[1748305480847,1.0184603,109490.0,109480.0,0.33064769]
[1748305481343,1.0184603,109490.0,109480.0,0.51326469]
[1748305482147,1.0184603,109490.0,109480.0,0.33064769]
[1748305482543,1.1352877,109490.0,109480.0,0.33064769]
[1748305482749,1.1352877,109490.0,109480.0,0.32660442]
[1748305483847,1.1352877,109490.0,109480.0,0.3225655]
[1748305484042,1.12529966,109490.0,109480.0,0.31717883]
[1748305484644,1.12529966,109490.0,109480.0,0.271]
[1748305487451,1.12529966,109490.0,109480.0,0.141]
[1748305488151,1.12533966,109490.0,109480.0,0.141]
[1748305491251,1.12633966,109490.0,109480.0,0.14]
[1748305491953,1.12733966,109490.0,109480.0,0.14]
[1748305492654,1.0205003,109490.0,109480.0,0.14]
[1748305492954,1.12733966,109490.0,109480.0,0.14]
[1748305493254,0.6094203,109490.0,109480.0,0.14]
[1748305493456,1.4180603,109490.0,109480.0,0.14]
[1748305494355,1.52489966,109490.0,109480.0,0.14]
[1748305499653,1.11377966,109490.0,109480.0,0.14]
[1748305499858,1.52489966,109490.0,109480.0,0.14]
[1748305503961,1.52489966,109490.0,109470.0,0.40812485]
[1748305503962,0.182617,109480.0,109470.0,0.40812485]
[1748305504162,0.277917,109480.0,109470.0,0.64812485]
[1748305504865,0.277917,109480.0,109470.0,0.65351152]
[1748305505663,0.277917,109480.0,109470.0,0.65451152]
[1748305505969,0.277917,109480.0,109470.0,0.68621152]
[1748305506267,1.41335706,109490.0,109480.0,0.182617]
[1748305506268,0.00012,109490.0,109480.0,0.182617]
[1748305506568,2.06851346,109500.0,109490.0,0.1826003]
[1748305506865,2.25109706,109500.0,109490.0,0.59333966]
[1748305507064,2.66221706,109500.0,109490.0,0.59333966]
[1748305507658,2.66233706,109500.0,109490.0,0.59333966]
[1748305508065,2.52001126,109500.0,109490.0,0.60680852]
[1748305508964,2.52201126,109500.0,109490.0,0.60680852]
[1748305509167,2.52501126,109500.0,109490.0,0.60680852]
[1748305510169,1.48909126,109500.0,109490.0,0.60680852]
[1748305511976,1.52059126,109500.0,109490.0,0.60680852]
[1748305514079,1.52059126,109500.0,109490.0,0.59872633]
[1748305515181,1.15975126,109500.0,109490.0,0.95952633]
[1748305517075,1.15975126,109500.0,109490.0,0.96760852]
[1748305519780,1.15975126,109500.0,109490.0,0.95952633]
[1748305521181,1.15975126,109500.0,109490.0,0.59872633]
[1748305521375,1.15975126,109500.0,109490.0,0.95952633]
[1748305522276,1.52055126,109500.0,109490.0,0.27868667]
[1748305522583,1.52055126,109500.0,109490.0,0.42798697]
[1748305526582,1.52055126,109500.0,109490.0,0.24538667]
[1748305526786,1.52055126,109500.0,109490.0,0.42798697]
[1748305528586,1.52055126,109500.0,109490.0,0.24538667]
[1748305528886,1.52055126,109500.0,109490.0,0.42798697]
[1748305529285,1.52055126,109500.0,109490.0,0.24538667]
[1748305529785,1.62739062,109500.0,109490.0,0.24538667]
[1748305530188,1.73422998,109500.0,109490.0,0.12538667]
[1748305530388,1.82555798,109500.0,109490.0,0.12538667]
[1748305530790,1.71871862,109500.0,109490.0,0.12]
[1748305531090,1.71871862,109500.0,109490.0,0.0202]
[1748305531091,1.82555798,109500.0,109490.0,0.0202]
[1748305531283,0.1826003,109490.0,109480.0,0.01360573]
[1748305531489,0.65023966,109490.0,109480.0,0.14360573]
[1748305532189,0.65023966,109490.0,109480.0,0.13552354]
[1748305532390,0.65123966,109490.0,109480.0,0.13552354]
[1748305532582,0.65223966,109490.0,109480.0,0.13552354]
[1748305533996,0.74357566,109490.0,109480.0,0.13552354]
[1748305534286,0.80827566,109490.0,109480.0,0.13552354]
[1748305534593,0.83847566,109490.0,109480.0,0.13552354]
[1748305535792,0.98080146,109490.0,109480.0,0.13013687]
[1748305537793,0.62000146,109490.0,109480.0,0.13013687]
[1748305537991,1.34160146,109490.0,109480.0,0.13013687]
[1748305538390,0.1826336,109470.0,109460.0,0.14026152]
[1748305538589,1.3507536,109470.0,109460.0,0.26026152]
[1748305538790,1.0844536,109470.0,109460.0,0.26026152]
[1748305539189,1.45455402,109470.0,109460.0,0.26026152]